bitfinex/quotes_ETHUSD_20241223
["timestamp","ask_amount","ask_price","bid_price","bid_amount"]
[1734942191220,3.02544,3305.3,3304.5,10.91511744]
[1734942191805,3.04650558,3305.3,3304.6,0.61887592]
[1734942192009,3.02581,3304.9,3304.5,8.67955964]
[1734942192226,0.7934,3304.6,3304.1,0.5920921]
[1734942192427,0.7934,3304.6,3303.9,10.91511744]
[1734942192624,0.7934,3304.6,3303.9,12.60931618]
[1734942194667,0.7934,3304.6,3304.0,0.61566429]
[1734942194829,3.02559,3305.2,3304.2,2.2355578]
[1734942195149,3.02559,3305.2,3304.2,6.0923878]
[1734942195352,0.7982,3305.3,3304.6,3.026]
[1734942195514,0.7982,3305.3,3304.8,2.2355578]
[1734942195716,2.52951924,3305.4,3304.9,8.67955964]
[1734942196420,0.7554,3305.6,3304.9,8.67955964]
[1734942196627,3.78057,3305.6,3304.9,8.67955964]
[1734942197035,3.04633558,3305.5,3304.9,8.67955964]
[1734942197514,0.7975,3305.4,3304.4,8.67955964]
[1734942197719,0.7975,3305.0,3304.4,8.67955964]
[1734942197927,3.84428558,3305.0,3304.4,8.67955964]
[1734942198147,0.7975,3305.0,3304.4,8.67955964]
[1734942198569,3.02583,3304.9,3304.4,8.67955964]
[1734942198772,3.82322,3305.0,3304.4,8.67955964]
[1734942200548,0.7975,3305.0,3304.4,8.67955964]
[1734942200742,0.7975,3305.0,3304.4,9.5475156]
[1734942200938,0.7975,3305.0,3304.4,8.67955964]
[1734942201958,3.02588,3304.9,3304.4,8.67955964]
[1734942202349,0.7975,3305.0,3304.2,8.67955964]
[1734942202544,0.7975,3305.0,3304.4,2.2355578]
[1734942202749,0.8285,3305.4,3304.4,5.2617278]
[1734942202978,3.85385,3305.4,3304.5,0.52617278]
[1734942203194,3.85385,3305.4,3304.6,0.7793]
[1734942203572,0.776,3305.2,3303.9,9.29710055]
[1734942203796,0.7574,3304.4,3303.6,8.67955964]
[1734942204092,0.7574,3303.7,3303.1,8.67955964]
[1734942204293,0.02106558,3303.6,3302.6,2.2355578]
[1734942204452,3.02721,3303.4,3302.7,0.30178578]
[1734942204661,3.027,3303.6,3302.4,8.67955964]
[1734942204866,3.02758,3303.0,3302.4,8.67955964]
[1734942205371,3.02718,3303.4,3302.0,3.64895144]
[1734942205372,0.7574,3302.8,3302.0,2.85607924]
[1734942205788,0.7574,3302.8,3302.0,2.2355578]
[1734942205991,0.7574,3302.8,3302.1,0.22355578]
[1734942206365,0.7574,3302.8,3301.8,12.29505146]
[1734942206584,0.7574,3302.8,3301.8,15.32368146]
[1734942207322,0.7574,3302.8,3302.0,3.02844]
[1734942207526,0.7574,3302.8,3302.1,6.02836]
[1734942207726,2.52951924,3303.3,3302.5,2.87653125]
[1734942207864,2.52951924,3303.3,3302.8,0.8173]
[1734942208065,2.52951924,3303.3,3303.1,3.0]
[1734942208324,2.52951924,3303.5,3303.1,6.02745]
[1734942208469,2.52951924,3303.5,3303.4,3.57718]
[1734942208819,2.52951924,3303.5,3303.4,4.85785396]
[1734942209118,2.52951924,3304.5,3303.6,3.57696]
[1734942209429,2.52951924,3304.5,3303.6,0.55]
[1734942209568,0.8241,3304.6,3303.6,6.57699]
[1734942210629,0.8241,3304.6,3303.7,3.0269]
[1734942210955,0.8241,3304.6,3303.8,0.65769]
[1734942211062,0.8241,3304.6,3303.6,3.0]
[1734942211063,0.02106558,3304.5,3303.6,3.0]
[1734942211624,0.8241,3304.6,3303.6,3.0]
[1734942211920,0.02106558,3304.5,3303.6,3.0]
[1734942212066,3.8502,3304.6,3303.6,3.0]
[1734942212267,3.8502,3304.6,3303.6,4.67798036]
[1734942212979,0.8241,3304.6,3303.6,4.67798036]
[1734942213182,3.02634,3304.4,3303.6,4.67798036]
[1734942213513,0.02106558,3304.5,3303.6,4.67798036]
[1734942214395,0.02106558,3304.5,3303.6,13.35754]
[1734942214721,0.8241,3304.6,3303.7,1.335754]
[1734942214944,2.52951924,3304.8,3303.7,1.335754]
[1734942215095,5.55542924,3304.8,3303.7,4.362634]
[1734942215722,3.02591,3304.8,3303.7,4.362634]
[1734942216142,3.35801924,3304.9,3303.8,8.67955964]
[1734942216304,3.35801924,3304.9,3303.9,1.00153136]
[1734942216508,6.38383924,3304.9,3303.9,7.02825136]
[1734942217441,3.85432,3304.9,3303.9,7.02825136]
[1734942217787,3.02595,3304.8,3303.9,4.00153136]
[1734942217993,0.8285,3304.9,3303.9,3.0]
[1734942218290,3.02608,3304.7,3303.9,3.0]
[1734942218493,3.0261,3304.6,3303.8,8.67955964]
[1734942218893,6.38387924,3304.9,3303.8,8.67955964]
[1734942219355,6.38387924,3304.9,3303.9,0.86795596]
[1734942220599,6.38387924,3304.9,3303.7,3.0]
[1734942220600,3.85436,3304.9,3303.7,3.0]
[1734942220847,3.85436,3304.9,3303.9,3.02669]
[1734942221014,0.8285,3304.9,3303.8,0.03026215]
[1734942221201,0.8285,3304.9,3304.1,0.8075]
[1734942221397,3.35801924,3304.9,3304.1,0.8075]
[1734942222048,0.8285,3304.9,3304.1,0.8075]
[1734942223049,0.8285,3304.9,3304.1,5.08536696]
[1734942224052,0.8285,3304.9,3304.2,3.0264]
[1734942224227,0.8285,3304.9,3304.4,3.02625]
[1734942224440,2.52951924,3305.1,3304.3,12.22955964]
[1734942224598,2.52951924,3305.1,3304.5,3.55]
[1734942224797,2.52951924,3305.2,3304.4,8.67955964]
[1734942224997,2.52951924,3305.2,3304.4,11.70580964]
[1734942225398,2.52951924,3305.2,3304.4,8.67955964]
[1734942225601,2.52951924,3305.4,3304.4,8.67955964]
[1734942225799,2.52951924,3305.4,3304.4,11.70574964]
[1734942226080,2.52951924,3305.3,3304.4,11.70574964]
[1734942226199,5.55497924,3305.3,3304.4,8.67955964]
[1734942226607,5.55497924,3305.3,3304.4,12.93657314]
[1734942226955,2.52951924,3305.3,3304.6,3.02605]
[1734942227155,2.52951924,3305.3,3305.0,3.02564]
[1734942227304,2.52951924,3305.3,3305.0,3.02565]
[1734942228719,2.52951924,3305.8,3305.0,3.02565]
[1734942228957,2.55058482,3305.8,3305.0,3.02565]
[1734942229101,2.55058482,3305.8,3304.9,8.67955964]
[1734942229500,0.7883,3305.6,3304.9,8.67955964]
[1734942229723,3.83454558,3305.6,3304.9,8.67955964]
[1734942230747,3.81348,3305.6,3304.9,8.67955964]
[1734942230904,0.7883,3305.6,3304.9,8.67955964]
[1734942231105,0.7883,3305.6,3305.0,0.86795596]
[1734942231303,2.52951924,3305.7,3305.0,0.86795596]
[1734942231304,2.52951924,3305.7,3305.1,3.0256]
[1734942231545,2.52951924,3305.7,3305.2,3.02552]
[1734942232057,2.52951924,3305.9,3305.3,3.02542]
[1734942232355,2.52951924,3305.9,3305.2,8.67955964]
[1734942232536,2.52951924,3305.9,3305.2,9.9270446]
[1734942232739,0.774,3306.2,3305.2,9.9270446]
[1734942232740,3.30351924,3306.2,3305.2,9.9270446]
[1734942233104,3.02472,3306.1,3305.2,9.9270446]
[1734942233310,3.04578558,3306.1,3305.2,8.67955964]
[1734942233706,3.02491,3305.9,3305.2,8.67955964]
[1734942233908,2.52951924,3306.1,3305.2,8.67955964]
[1734942234107,3.02498,3305.8,3305.2,8.67955964]
[1734942234625,2.52951924,3305.9,3305.2,8.67955964]
[1734942234962,2.52951924,3305.9,3305.2,9.5475156]
[1734942235126,2.52951924,3305.9,3305.3,0.7998]
[1734942235326,2.52951924,3306.1,3305.3,0.7998]
[1734942235845,5.55423924,3306.1,3305.3,0.7998]
[1734942236025,3.02472,3306.1,3305.3,0.7998]
[1734942236264,3.02472,3306.1,3305.3,1.2665756]
[1734942236702,3.04578558,3306.1,3305.3,1.2665756]
[1734942237593,3.02494,3305.9,3305.1,3.0]
[1734942237921,0.8181,3305.6,3305.0,8.67955964]
[1734942238464,0.8181,3305.6,3304.8,11.70544964]
[1734942239386,0.8181,3305.6,3304.9,3.0258]
[1734942239597,3.02484,3306.0,3305.0,1.17053596]
[1734942239796,3.81024,3306.0,3305.0,1.17053596]
[1734942240092,0.7854,3306.0,3305.1,3.02558]
[1734942240298,0.7854,3306.0,3305.3,0.7989]
[1734942240449,3.81028,3306.0,3305.3,0.7989]
[1734942240651,3.025,3305.8,3305.0,1.97333596]
[1734942240849,3.0251,3305.7,3305.0,1.97333596]
[1734942241043,0.02106558,3305.6,3304.8,8.67955964]
[1734942241289,0.7917,3305.5,3304.8,8.67955964]
[1734942243147,0.7917,3305.5,3304.5,0.61466221]
[1734942243352,0.7917,3305.5,3304.4,8.67955964]
[1734942243353,0.7576,3305.0,3304.4,8.67955964]
[1734942243575,3.78334,3305.0,3304.4,8.67955964]
[1734942243852,3.78334,3305.0,3304.4,9.6280356]
[1734942244054,3.026,3304.7,3304.0,1.4130304]
[1734942244249,3.026,3304.7,3304.0,0.7934]
[1734942244792,0.02106558,3304.9,3304.0,0.7934]
[1734942245000,3.02596,3304.8,3304.0,0.7934]
[1734942245171,0.7576,3305.0,3304.1,0.94729596]
[1734942245499,0.7576,3305.0,3304.0,0.7934]
[1734942246620,3.02591,3304.8,3304.0,0.7934]
[1734942247696,0.02106558,3304.9,3303.8,2.82642537]
[1734942247893,3.0,3305.1,3303.4,0.8305]
[1734942247894,3.02644,3304.3,3303.4,0.8305]
[1734942248296,3.04750558,3304.3,3303.4,0.8305]
[1734942248453,3.02644,3304.3,3303.5,0.95100596]
[1734942248655,0.8098,3304.4,3303.5,0.95100596]
[1734942248870,0.8098,3304.4,3303.6,3.02698]
[1734942249158,0.8098,3304.4,3303.5,0.95100596]
[1734942249476,0.8098,3304.4,3303.5,3.97807596]
[1734942249681,0.8098,3304.4,3303.6,0.70389395]
[1734942251302,3.02635,3304.3,3303.6,0.70389395]
[1734942251796,0.8098,3304.4,3303.6,0.70389395]
[1734942252682,3.83607,3304.4,3303.6,0.70389395]
[1734942254295,0.8098,3304.4,3303.6,0.70389395]
[1734942254495,0.8098,3304.4,3303.7,0.3730954]
[1734942255720,3.83608,3304.4,3303.5,3.0]
[1734942256247,3.02628,3304.4,3303.5,3.02709]
[1734942256449,3.02628,3304.4,3303.5,8.67955964]
[1734942256601,3.02636,3304.3,3303.5,8.67955964]
[1734942257150,0.02106558,3304.2,3303.5,8.67955964]
[1734942257457,3.02672,3303.9,3303.5,8.67955964]
[1734942257755,3.02665,3304.0,3303.5,8.67955964]
[1734942257898,0.7705,3304.3,3303.5,8.67955964]
[1734942258098,2.52951924,3304.4,3303.9,2.23036358]
[1734942258407,3.79427886,3304.6,3304.5,3.02617]
[1734942258961,3.79427886,3304.6,3304.3,13.04995559]
[1734942259101,3.02591,3304.8,3304.3,9.43885964]
[1734942259439,3.80098,3305.3,3304.3,9.43885964]
[1734942259440,3.02574,3305.0,3304.3,9.43885964]
[1734942259741,5.55778511,3305.0,3304.3,9.43885964]
[1734942260969,2.53204511,3305.0,3304.3,10.44449151]
[1734942262151,2.53204511,3305.0,3304.5,3.02616]
[1734942262663,2.53204511,3305.0,3304.6,3.02607]
[1734942262963,2.53204511,3305.0,3304.7,0.761]
[1734942263164,2.53204511,3305.4,3304.7,0.761]
[1734942263634,2.53204511,3305.4,3304.7,1.2748414]
[1734942263832,2.53204511,3305.4,3304.7,4.3008214]
[1734942264270,2.53204511,3305.5,3304.7,4.3008214]
[1734942264454,2.53204511,3305.5,3304.8,0.03025635]
[1734942264655,2.53204511,3305.6,3304.9,3.02579]
[1734942264842,2.53204511,3305.6,3304.9,1.30104445]
[1734942265171,2.53204511,3305.6,3305.4,3.02531]
[1734942265467,2.53204511,3305.6,3305.2,3.05106358]
[1734942265468,2.53204511,3305.8,3305.2,3.84622]
[1734942266569,2.53204511,3306.2,3305.2,3.84622]
[1734942266781,2.53204511,3306.2,3305.3,4.0077272]
[1734942267268,2.53204511,3306.2,3305.4,3.02532]
[1734942267498,3.36264511,3306.3,3305.4,3.02532]
[1734942268286,2.53204511,3306.3,3305.4,0.7748]
[1734942268473,2.53204511,3306.3,3305.6,0.7748]
[1734942268679,2.53204511,3306.3,3306.1,0.7748]
[1734942268873,2.53204511,3306.3,3306.2,3.02462]
[1734942269885,2.53204511,3307.1,3306.2,11.70417964]
[1734942270563,2.53204511,3307.1,3306.3,3.0245]
[1734942270763,0.02106558,3307.1,3306.3,12.9519456]
[1734942271683,0.02106558,3307.1,3306.4,3.02441]
[1734942271902,0.02106558,3307.2,3306.4,3.02441]
[1734942272365,0.02106558,3307.2,3306.5,3.0]
[1734942272567,0.02106558,3307.2,3306.5,4.59518556]
[1734942272987,0.02106558,3307.2,3306.5,1.59518556]
[1734942273191,0.02106558,3307.2,3306.3,9.9274456]
[1734942274575,0.02106558,3307.2,3306.3,12.9519656]
[1734942276227,3.79881,3307.3,3306.3,12.9519656]
[1734942276431,0.02106558,3307.2,3306.4,0.8212]
[1734942276803,3.02345,3307.5,3306.4,1.18713534]
[1734942277494,3.02345,3307.5,3306.5,3.0]
[1734942280941,3.02345,3307.5,3306.6,0.7741]
[1734942283143,3.02386,3307.1,3306.6,0.7741]
[1734942283334,0.02106558,3307.0,3306.6,0.7741]
[1734942286466,3.02416,3306.7,3306.2,0.7714]
[1734942286631,3.02426,3306.6,3305.9,3.7714]
[1734942287673,3.02426,3306.6,3305.9,0.7714]
[1734942289765,0.7763,3306.9,3305.9,3.79627]
[1734942289979,0.7763,3306.9,3305.9,5.32688078]
[1734942290266,3.02408,3306.8,3305.9,5.32688078]
[1734942290466,3.02408,3306.8,3305.9,2.30201078]
[1734942290768,3.02408,3306.8,3305.9,2.33225555]
[1734942291134,3.02418,3306.7,3305.9,2.30201078]
[1734942291333,3.80031,3306.9,3305.9,0.7714]
[1734942291563,3.80031,3306.9,3305.9,3.79627]
[1734942291860,3.02419,3306.7,3305.9,0.7714]
[1734942294520,3.02405,3306.9,3305.9,0.7714]
[1734942295088,3.83475,3307.2,3305.9,0.7714]
[1734942295276,3.0241,3306.8,3305.9,0.7714]
[1734942295567,3.02417,3306.7,3305.9,0.7714]
[1734942296730,3.02511,3305.7,3305.2,0.7852]
[1734942296928,0.8194,3306.3,3305.2,0.7852]
[1734942297169,3.02535,3305.4,3305.2,0.7852]
[1734942297371,0.02106558,3305.5,3304.8,0.7852]
[1734942297539,2.07856738,3305.6,3304.8,0.7852]
[1734942297540,3.02555,3305.2,3304.8,0.7852]
[1734942298419,0.02106558,3305.3,3304.4,0.7577]
[1734942298620,3.02599,3304.7,3304.1,0.7577]
[1734942298872,3.85202,3305.1,3304.1,0.7577]
[1734942299174,3.02583,3304.9,3304.1,0.7577]
[1734942299339,3.02592,3304.8,3304.1,0.7577]
[1734942300555,0.8264,3305.1,3304.1,1.19412121]
[1734942300760,3.02563,3305.1,3304.1,3.42448479]
[1734942301156,3.02572,3305.0,3304.2,3.0]
[1734942301475,3.02585,3304.9,3304.1,12.10404443]
[1734942301623,3.02565,3305.1,3304.1,12.10404443]
[1734942301822,3.02565,3305.1,3304.2,1.21040444]
[1734942302240,3.026,3304.7,3304.1,9.87368085]
[1734942304259,3.02562,3305.2,3304.1,9.87368085]
[1734942304452,3.02583,3304.9,3304.1,1.19412121]
[1734942305067,3.02583,3304.9,3304.1,1.22438291]
[1734942306070,3.02556,3305.2,3304.2,0.7836]
[1734942306363,3.02563,3305.1,3304.3,0.42768129]
[1734942307345,3.02579,3305.0,3304.3,0.42768129]
[1734942307568,3.02579,3305.0,3304.2,9.46315964]
[1734942308963,3.02544,3305.3,3304.2,9.46315964]
[1734942309167,3.02579,3305.0,3304.2,9.46315964]
[1734942309865,0.02106558,3304.9,3304.2,9.46315964]
[1734942310091,3.02581,3304.9,3303.8,0.795]
[1734942310380,0.7931,3305.0,3303.8,0.795]
[1734942310381,3.02634,3304.4,3303.8,0.795]
[1734942311975,0.02106558,3304.7,3303.8,0.795]
[1734942312182,3.02648,3304.2,3303.8,0.795]
[1734942313493,3.7931,3305.0,3303.8,0.795]
[1734942313494,3.02629,3304.4,3303.8,0.795]
[1734942314094,3.02636,3304.3,3303.8,0.795]
[1734942314255,0.7835,3304.3,3303.5,0.7571]
[1734942314443,3.02669,3304.0,3303.5,0.7571]
[1734942314644,0.02106558,3303.9,3303.5,0.7571]
[1734942314844,3.02692,3303.7,3303.5,0.7571]
[1734942315045,3.02692,3303.7,3303.2,9.43905964]
[1734942315246,0.02106558,3303.6,3302.9,0.7515]
[1734942315446,3.02713,3303.5,3302.9,0.7515]
[1734942315883,3.02694,3303.7,3302.9,0.7515]
[1734942316084,3.0,3304.4,3303.1,3.02738]
[1734942316245,3.02666,3304.0,3303.2,0.7515]
[1734942316455,3.02673,3303.9,3303.2,0.7515]
[1734942317274,3.0266,3304.1,3303.2,0.78177033]
[1734942317563,3.02684,3303.8,3303.2,0.7515]
[1734942317905,0.02106558,3304.2,3303.2,0.7515]
[1734942318211,0.7975,3303.8,3303.2,0.7515]
[1734942318377,0.02106558,3303.7,3302.8,0.7749]
[1734942318699,3.02708,3303.6,3302.8,2.08108078]
[1734942319117,0.7975,3303.8,3302.8,2.08108078]
[1734942319425,0.81856558,3304.2,3303.2,0.7749]
[1734942319587,0.7975,3304.2,3303.2,0.7749]
[1734942319796,2.53204511,3304.6,3303.2,0.7749]
[1734942319797,3.02635,3304.4,3303.2,3.02729]
[1734942319998,0.7975,3304.6,3303.3,1.077629]
[1734942320234,3.02637,3304.3,3303.3,1.077629]
[1734942320573,3.02627,3304.4,3303.4,0.81906888]
[1734942320774,3.7975,3304.6,3303.4,0.7888]
[1734942321022,3.02628,3304.4,3303.4,0.7888]
[1734942321330,3.02628,3304.4,3303.4,1.170403]
[1734942321472,3.82361,3304.6,3303.5,0.03026725]
[1734942321679,3.02598,3304.8,3303.8,0.8088]
[1734942321888,3.34104511,3305.2,3304.0,0.7803]
[1734942322237,3.34104511,3305.2,3303.6,8.67955964]
[1734942322238,2.53204511,3305.2,3304.2,0.7803]
[1734942322370,2.53204511,3305.2,3304.3,3.05654899]
[1734942322575,2.53204511,3305.2,3304.3,3.80659]
[1734942323532,3.02544,3305.3,3304.3,3.80659]
[1734942324367,0.809,3305.5,3304.3,0.7803]
[1734942324494,0.83006558,3305.5,3304.3,0.7803]
[1734942324850,3.02564,3305.1,3304.3,0.7803]
[1734942325033,0.02106558,3305.0,3304.3,0.7803]
[1734942326215,3.02574,3305.0,3304.3,0.7803]
[1734942326398,2.23036358,3305.3,3304.3,0.7803]
[1734942326598,3.02578,3305.0,3304.3,0.7803]
[1734942328836,0.809,3305.5,3304.4,0.8245]
[1734942329040,0.809,3305.5,3304.5,3.05642093]
[1734942329342,3.02535,3305.4,3304.4,0.8245]
[1734942329501,3.02535,3305.4,3304.4,3.8245]
[1734942329832,3.02535,3305.4,3304.4,3.85074]
[1734942330042,3.02535,3305.4,3304.4,4.535814]
[1734942330397,3.02552,3305.3,3304.4,1.509574]
[1734942330824,3.02552,3305.3,3304.4,4.509574]
[1734942331743,2.23036358,3305.0,3304.1,0.7538]
[1734942332038,3.7739,3304.3,3302.9,0.7538]
[1734942332251,3.027,3303.6,3302.9,0.7538]
[1734942332401,3.02715,3303.5,3302.9,0.7538]
[1734942332960,3.02737,3303.2,3302.2,0.7937]
[1734942333105,3.02737,3303.2,3302.2,14.35689114]
[1734942333938,0.02106558,3303.1,3302.2,2.04386196]
[1734942334157,3.02756,3303.0,3302.2,0.7937]
[1734942334661,3.02767,3302.9,3302.2,0.7937]
[1734942334818,0.02106558,3302.8,3302.2,0.7937]
[1734942335023,0.02106558,3303.0,3302.2,0.7937]
[1734942335631,3.02791,3302.7,3302.2,0.7937]
[1734942335831,0.02106558,3302.6,3302.2,0.7937]
[1734942336044,0.02106558,3302.6,3301.6,0.793]
[1734942336244,0.02106558,3302.9,3301.7,0.44023362]
[1734942336458,3.02792,3302.6,3301.7,0.44023362]
[1734942336768,0.02106558,3302.5,3301.7,0.44023362]
[1734942337324,3.02792,3302.6,3301.7,0.44023362]
[1734942337665,0.02106558,3302.5,3301.7,0.44023362]
[1734942338338,3.0,3303.1,3301.8,0.99127933]
[1734942338660,3.02763,3303.0,3301.9,3.02852]
[1734942338875,3.02776,3302.8,3301.8,0.99127933]
[1734942339562,3.02763,3303.0,3301.8,0.99127933]
[1734942339920,3.02763,3303.0,3301.9,0.828]
[1734942340119,3.02763,3303.0,3302.0,0.18192793]
[1734942341162,3.02734,3303.3,3301.9,0.828]
[1734942341163,0.02106558,3302.9,3301.9,0.828]
[1734942341379,3.04842558,3303.2,3301.9,0.828]
[1734942341526,3.02774,3302.8,3301.9,0.828]
[1734942342135,0.02106558,3302.7,3301.9,0.828]
[1734942342569,3.02812,3302.4,3301.9,0.828]
[1734942342739,0.8126,3302.8,3301.9,0.828]
[1734942342740,3.04926558,3302.3,3301.9,0.828]
[1734942342938,3.04926558,3302.3,3301.5,0.828]
[1734942343136,3.02828,3302.2,3301.5,0.828]
[1734942343453,3.02812,3302.4,3301.5,0.828]
[1734942344152,0.02106558,3302.3,3301.5,0.828]
[1734942345062,3.02863,3301.9,3301.1,0.828]
[1734942345233,0.02106558,3301.8,3301.1,0.828]
[1734942345566,3.04950558,3302.1,3301.1,0.828]
[1734942345873,3.02866,3301.8,3301.1,0.828]
[1734942346167,3.02844,3302.1,3301.1,0.828]
[1734942346463,3.0282,3302.3,3301.2,3.02914]
[1734942346663,3.0282,3302.3,3301.3,3.8293]
[1734942347063,5.56024511,3302.3,3301.3,3.8293]
[1734942347846,3.0282,3302.3,3301.3,3.8293]
[1734942348061,3.32964511,3302.9,3301.5,0.7963]
[1734942348264,2.53204511,3302.9,3302.0,0.7963]
[1734942348574,0.02106558,3302.8,3302.0,0.7963]
[1734942349081,2.53204511,3303.0,3302.0,3.82473]
[1734942349312,5.55961511,3303.0,3302.0,3.82473]
[1734942349591,0.02106558,3302.9,3302.0,0.7963]
[1734942350005,3.7976,3303.2,3302.0,0.7963]
[1734942350147,3.02748,3303.1,3302.1,3.02836]
[1734942350349,3.0,3303.2,3302.0,0.7963]
[1734942350350,3.02755,3303.0,3302.0,0.7963]
[1734942350645,3.02755,3303.0,3302.0,4.207243]
[1734942350882,3.02755,3303.0,3302.0,3.82476]
[1734942351091,3.02776,3302.8,3302.0,0.7963]
[1734942351390,5.39541997,3303.5,3302.0,0.7963]
[1734942351391,3.02792,3302.6,3302.0,0.7963]
[1734942351691,0.02106558,3302.5,3302.0,0.7963]
[1734942352595,3.04881558,3302.8,3302.0,0.7963]
[1734942352957,0.7856,3302.9,3302.0,0.7963]
[1734942353162,3.02752,3303.1,3302.0,3.82476]
[1734942353575,3.31234511,3303.3,3302.0,3.82476]
[1734942353744,3.02757,3303.0,3302.0,3.82476]
[1734942354159,3.02726,3303.4,3302.3,3.84526]
[1734942355261,0.81636558,3303.6,3302.3,0.8171]
[1734942355464,3.02709,3303.5,3302.3,0.8171]
[1734942355663,3.02742,3303.2,3302.3,0.8171]
[1734942355865,3.02754,3303.1,3302.3,0.8171]
[1734942356400,0.02106558,3303.0,3302.3,0.8171]
[1734942357822,3.02754,3303.1,3302.3,0.8171]
[1734942358717,0.7953,3303.6,3302.3,0.8171]
[1734942358913,0.02106558,3303.4,3302.3,0.8171]
[1734942359285,3.02106558,3303.4,3302.3,0.8171]
[1734942359611,0.7504,3303.1,3302.3,0.8171]
[1734942359813,3.02777,3302.8,3302.3,0.8171]
[1734942360016,0.02106558,3302.7,3302.3,0.8171]
[1734942360465,3.02777,3302.8,3302.3,0.8171]
[1734942360817,3.04883558,3302.8,3302.3,0.8171]
[1734942361222,0.02106558,3302.8,3302.0,0.7779]
[1734942361361,3.02796,3302.6,3302.0,0.7779]
[1734942361716,0.7504,3303.1,3302.0,0.7779]
[1734942361717,3.0281,3302.4,3302.0,0.7779]
[1734942361915,3.02793,3302.6,3302.0,0.7779]
[1734942362209,3.04907558,3302.5,3302.0,0.7779]
[1734942362911,0.02106558,3302.5,3302.0,0.7779]
[1734942363115,3.04912558,3302.5,3302.0,0.7779]
[1734942363293,0.02106558,3302.8,3302.0,0.7779]
[1734942363482,3.028,3302.6,3302.0,0.7779]
[1734942363678,0.02106558,3302.5,3302.0,0.7779]
[1734942363923,3.02756,3303.0,3302.0,4.75209596]
[1734942364066,3.04849558,3303.2,3302.1,3.02836]
[1734942364262,6.31843511,3303.4,3302.2,0.8236]
[1734942364568,3.02106558,3303.3,3302.2,0.8236]
[1734942364790,3.02752,3303.1,3302.2,0.8236]
[1734942364994,3.04861558,3303.0,3302.2,0.8236]
[1734942365300,3.02765,3302.9,3302.2,0.8236]
[1734942365520,0.02106558,3302.8,3302.2,0.8236]
[1734942366202,3.02732,3303.3,3302.2,0.8236]
[1734942366203,3.02763,3303.0,3302.2,0.8236]
[1734942366407,2.98956358,3303.4,3302.2,0.8236]
[1734942366620,3.02744,3303.2,3302.3,0.7989]
[1734942366941,6.02707,3303.6,3302.6,0.7989]
[1734942367222,3.02714,3303.5,3302.6,0.7989]
[1734942368428,3.31464511,3303.7,3302.6,0.7989]
[1734942368429,3.0273,3303.3,3302.6,0.7989]
[1734942368586,3.80953,3303.7,3302.6,0.7989]
[1734942368587,0.02106558,3303.2,3302.6,0.7989]
[1734942368786,3.02743,3303.2,3302.6,0.7989]
[1734942369220,0.02106558,3303.1,3302.2,9.47845964]
[1734942369433,3.02777,3302.8,3302.2,0.7989]
[1734942369933,3.02758,3303.0,3302.2,0.7989]
[1734942370085,3.0279,3302.7,3302.2,0.7989]
[1734942370289,3.02736,3303.2,3302.2,0.7989]
[1734942370544,3.0276,3303.0,3302.2,0.7989]
[1734942370742,3.02738,3303.2,3302.2,0.7989]
[1734942371042,3.02738,3303.2,3302.1,3.02836]
[1734942371043,3.02738,3303.2,3302.4,0.7674]
[1734942371394,5.55917511,3303.5,3302.4,0.79767934]
[1734942371395,2.53204511,3303.5,3302.4,0.79767934]
[1734942371726,2.53204511,3303.5,3302.9,3.79502]
[1734942371905,3.02714,3303.5,3302.9,0.7674]
[1734942372549,3.02732,3303.3,3302.9,0.7674]
[1734942373802,3.02708,3303.6,3302.9,0.7674]
[1734942374622,3.02711,3303.5,3302.9,0.7674]
[1734942374803,2.53204511,3303.8,3302.9,0.7674]
[1734942374804,3.02729,3303.3,3302.9,0.7674]
[1734942375527,3.04843558,3303.2,3302.9,0.7674]
[1734942375894,0.02106558,3303.2,3302.9,0.7674]
[1734942376095,0.02106558,3303.5,3302.9,0.7674]
[1734942376341,3.02731,3303.3,3302.9,0.7674]
[1734942376839,3.02747,3303.1,3302.4,0.785]
[1734942377443,3.02728,3303.3,3302.4,0.785]
[1734942377595,3.02746,3303.1,3302.4,0.785]
[1734942379125,3.04852558,3303.1,3302.4,0.785]
[1734942380236,3.02746,3303.1,3302.4,0.785]
[1734942380960,2.53204511,3303.2,3302.4,0.785]
[1734942381336,2.53204511,3303.1,3302.4,0.785]
[1734942382053,0.02106558,3303.0,3302.4,0.785]
[1734942382816,3.02779,3302.8,3302.4,0.785]
[1734942383256,5.55983511,3302.8,3302.4,0.785]
[1734942384066,2.55311069,3302.7,3301.6,9.43865964]
[1734942384248,3.7973,3302.6,3301.6,0.7591]
[1734942384434,0.02106558,3302.5,3301.6,0.7591]
[1734942384628,5.25861358,3302.3,3301.6,0.7591]
[1734942384829,3.02901,3301.5,3301.0,0.7591]
[1734942385370,3.02902,3301.4,3301.0,0.7591]
[1734942385858,2.53204511,3301.8,3301.0,0.7591]
[1734942386162,3.02912,3301.3,3301.0,0.7591]
[1734942386622,0.02106558,3301.2,3300.6,0.7591]
[1734942386817,0.02106558,3301.4,3300.6,0.7591]
[1734942387056,3.02927,3301.2,3300.6,0.7591]
[1734942387238,0.02106558,3301.1,3300.6,0.7591]
[1734942387445,3.02938,3301.0,3300.2,0.7591]
[1734942387633,0.02106558,3300.9,3300.2,0.7591]
[1734942387968,3.02966,3300.7,3300.2,0.7591]
[1734942388170,3.05083558,3300.6,3300.2,0.7591]
[1734942388475,0.02106558,3300.6,3300.2,0.7591]
[1734942388835,3.02959,3300.8,3300.2,0.7591]
[1734942389231,3.02958,3300.8,3300.2,0.7591]
[1734942389430,0.7973,3300.9,3300.2,0.7591]
[1734942389828,3.82679,3300.9,3300.2,0.7591]
[1734942390374,2.53785164,3301.0,3300.2,0.7591]
[1734942390574,2.53785164,3301.0,3300.2,1.138034]
[1734942390752,3.0294,3301.0,3300.2,1.138034]
[1734942390950,3.0294,3301.0,3300.2,0.7591]
[1734942391478,3.17231455,3301.3,3299.9,0.61425954]
[1734942391479,3.02958,3300.8,3299.9,0.61425954]